fUST/lending_fUST_20250609
["ID","MTS","AMOUNT","RATE_DAILY","PERIOD"]
[365128418,1749483038447,-500.0,0.00021916,2]
[365128434,1749483038457,-500.0,0.00021916,2]
[365128436,1749483038602,-500.0,0.00021916,2]
[365128439,1749483038612,-500.0,0.00021916,2]
[365128441,1749483038623,-500.0,0.00021916,2]
[365128443,1749483038633,-500.0,0.00021916,2]
[365128445,1749483038643,-178.28964728,0.00021916,2]
[365128447,1749483038653,-500.0,0.00021916,2]
[365128449,1749483038664,-500.0,0.00021916,2]
[365128451,1749483038674,-618.94259712,0.00021916,2]
[365128453,1749483038683,-500.0,0.00021916,2]
[365128455,1749483038692,-500.0,0.00021916,2]
[365128457,1749483038702,-500.0,0.00021916,2]
[365128459,1749483038711,-500.0,0.00021916,2]
[365128461,1749483038720,-500.0,0.00021916,2]
[365128463,1749483038730,-500.0,0.00021916,2]
[365128465,1749483038739,-500.0,0.00021916,2]
[365128467,1749483038748,-500.0,0.00021916,2]
[365128469,1749483038758,-500.0,0.00021916,2]
[365128471,1749483038767,-500.0,0.00021916,2]
[365128473,1749483038776,-500.0,0.00021916,2]
[365128475,1749483038785,-450.0,0.00021916,2]
[365128477,1749483038794,-410.74096118,0.00021916,2]
[365128479,1749483038803,-1000.0,0.00021916,2]
[365128481,1749483038813,-396.19836587,0.00021917,4]
[365128483,1749483038823,-423.24721018,0.00021917,4]
[365128485,1749483038832,-426.30165298,0.00021917,4]
[365128487,1749483038841,-498.53561521,0.00021917,4]
[365128489,1749483038851,-460.0,0.00021917,4]
[365128491,1749483038861,-500.0,0.00021917,4]
[365128493,1749483038870,-440.0,0.00021917,4]
[365128495,1749483038879,-440.0,0.00021917,4]
[365128497,1749483038887,-576.78093671,0.00021917,4]
[365128499,1749483038896,-180.37555558,0.00021917,4]
[365128501,1749483038904,-440.0,0.00021917,4]
[365128503,1749483038913,-460.0,0.00021917,4]
[365128505,1749483038922,-440.0,0.00021917,4]
[365128507,1749483038930,-440.0,0.00021917,4]
[365128509,1749483038938,-430.0,0.00021917,4]
[365128511,1749483038946,-460.0,0.00021917,4]
[365128513,1749483038955,-440.0,0.00021917,4]
[365128515,1749483038963,-430.0,0.00021917,4]
[365128517,1749483038972,-440.0,0.00021917,4]
[365128519,1749483038981,-206.1123662,0.00021917,4]
[365128520,1749483038988,-440.0,0.00021917,4]
[365128522,1749483038996,-522.23186647,0.00021917,4]
[365128524,1749483039004,-440.0,0.00021917,4]
[365128526,1749483039012,-440.0,0.00021917,4]
[365128528,1749483039021,-328.30114213,0.00021917,4]
[365128531,1749483039031,-440.0,0.00021917,4]
[365128532,1749483039038,-460.0,0.00021917,4]
[365128534,1749483039046,-460.0,0.00021917,4]
[365128536,1749483039054,-440.0,0.00021917,4]
[365128538,1749483039062,-374.1,0.00021917,4]
[365128540,1749483039072,-400.0,0.00021917,4]
[365128543,1749483039082,-460.0,0.00021917,4]
[365128545,1749483039093,-440.0,0.00021917,4]
[365128547,1749483039103,-440.0,0.00021917,4]
[365128549,1749483039113,-460.0,0.00021917,4]
[365128551,1749483039123,-500.0,0.00021917,2]
[365128553,1749483039133,-440.0,0.00021917,4]
[365128555,1749483039142,-440.0,0.00021917,4]
[365128557,1749483039152,-365.03691886,0.00021917,4]
[365128559,1749483039163,-360.0,0.00021917,4]
[365128561,1749483039173,-460.0,0.00021917,4]
[365128563,1749483039183,-500.0,0.00021917,4]
[365128565,1749483039193,-460.0,0.00021917,4]
[365128567,1749483039203,-531.01,0.00021917,4]
[365128569,1749483039213,-440.0,0.00021917,4]
[365128571,1749483039223,-440.0,0.00021917,4]
[365128573,1749483039232,-440.0,0.00021917,4]
[365128575,1749483039242,-460.0,0.00021917,4]
[365128577,1749483039252,-460.0,0.00021917,4]
[365128579,1749483039262,-430.0,0.00021917,4]
[365128581,1749483039271,-440.0,0.00021917,4]
[365128583,1749483039280,-440.0,0.00021917,4]
[365128585,1749483039290,-522.05499104,0.00021917,4]
[365128587,1749483039299,-460.0,0.00021917,4]
[365128589,1749483039309,-430.0,0.00021917,4]
[365128591,1749483039318,-460.0,0.00021917,4]
[365128593,1749483039328,-460.0,0.00021917,4]
[365128595,1749483039338,-440.0,0.00021917,4]
[365128596,1749483039347,-440.0,0.00021917,4]
[365128597,1749483039357,-440.0,0.00021917,4]
[365128598,1749483039366,-460.0,0.00021917,4]
[365128599,1749483039375,-440.0,0.00021917,4]
[365128600,1749483039387,-440.0,0.00021917,4]
[365128601,1749483039398,-477.12,0.00021917,4]
[365128603,1749483039408,-440.0,0.00021917,4]
[365128606,1749483039418,-440.0,0.00021917,4]
[365128608,1749483039427,-440.0,0.00021917,4]
[365128610,1749483039438,-440.0,0.00021917,4]
[365128612,1749483039448,-440.0,0.00021917,4]
[365128614,1749483039458,-496.35,0.00021917,2]
[365128616,1749483039467,-440.0,0.00021917,4]
[365128619,1749483039477,-440.0,0.00021917,4]
[365128621,1749483039487,-460.0,0.00021917,4]
[365128623,1749483039497,-460.0,0.00021917,4]
[365128625,1749483039507,-460.0,0.00021917,4]
[365128627,1749483039517,-440.0,0.00021917,4]
[365128630,1749483039527,-440.0,0.00021917,4]
[365128631,1749483039536,-440.0,0.00021917,4]
[365128633,1749483039546,-440.0,0.00021917,4]
[365128635,1749483039555,-460.0,0.00021917,4]
[365128637,1749483039564,-931.27,0.00021917,4]
[365128639,1749483039574,-440.0,0.00021917,4]
[365128642,1749483039583,-611.61,0.00021917,4]
[365128644,1749483039593,-274.86729303,0.00021917,4]
[365128646,1749483039602,-460.0,0.00021917,4]
[365128648,1749483039612,-440.0,0.00021917,4]
[365128650,1749483039621,-430.0,0.00021917,4]
[365128652,1749483039630,-460.0,0.00021917,4]
[365128654,1749483039640,-460.0,0.00021917,4]
[365128656,1749483039649,-460.0,0.00021917,4]
[365128658,1749483039659,-500.0,0.00021917,4]
[365128660,1749483039672,-500.0,0.00021917,4]
[365128662,1749483039682,-440.0,0.00021917,4]
[365128664,1749483039691,-463.64,0.00021917,4]
[365128665,1749483039701,-460.0,0.00021917,4]
[365128668,1749483039713,-337.24598555,0.00021917,4]
[365128669,1749483039722,-460.0,0.00021917,4]
[365128671,1749483039731,-460.0,0.00021917,4]
[365128674,1749483039742,-2747.35,0.00021917,4]
[365128676,1749483039752,-460.0,0.00021917,4]
[365128678,1749483039761,-322.68253243,0.00021917,4]
[365128680,1749483039770,-495.84,0.00021917,4]
[365128682,1749483039780,-1681.02,0.00021917,4]
[365128684,1749483039789,-460.0,0.00021917,4]
[365128686,1749483039799,-460.0,0.00021917,4]
[365128688,1749483039808,-440.0,0.00021917,4]
[365128690,1749483039818,-700.17,0.00021917,4]
[365128692,1749483039828,-460.0,0.00021917,4]
[365128694,1749483039837,-460.0,0.00021917,4]
[365128696,1749483039846,-535.02,0.00021917,4]
[365128698,1749483039856,-460.0,0.00021917,4]
[365128700,1749483039866,-2776.12,0.00021917,4]
[365128702,1749483039875,-1602.31,0.00021917,4]
[365128704,1749483039885,-732.26,0.00021917,4]
[365128706,1749483039894,-460.0,0.00021917,4]
[365128708,1749483039905,-460.0,0.00021917,4]
[365128710,1749483039915,-942.88,0.00021917,4]
[365128712,1749483039925,-593.8,0.00021917,4]
[365128714,1749483039936,-460.0,0.00021917,4]
[365128716,1749483039946,-214.73489041,0.00021917,4]
[365128718,1749483039956,-440.0,0.00021917,4]
[365128720,1749483039966,-500.0,0.00021917,4]
[365128722,1749483039976,-500.0,0.00021917,4]
[365128724,1749483039986,-440.0,0.00021917,4]
[365128726,1749483039996,-3801.97,0.00021917,4]
[365128728,1749483040006,-460.0,0.00021917,4]
[365128730,1749483040016,-460.0,0.00021917,4]
[365128732,1749483040025,-1189.4,0.00021917,4]
[365128734,1749483040035,-440.0,0.00021917,4]
[365128736,1749483040045,-430.0,0.00021917,4]
[365128738,1749483040055,-460.0,0.00021917,4]
[365128740,1749483040064,-460.0,0.00021917,4]
[365128742,1749483040074,-401.10544024,0.00021917,4]
[365128744,1749483040083,-430.0,0.00021917,4]
[365128746,1749483040093,-422.0,0.00021917,4]
[365128748,1749483040103,-421.33517862,0.00021917,4]
[365128750,1749483040112,-430.0,0.00021917,4]
[365128752,1749483040122,-726.77,0.00021917,4]
[365128754,1749483040132,-460.0,0.00021917,4]
[365128756,1749483040141,-1277.5,0.00021917,4]
[365128758,1749483040151,-460.0,0.00021917,4]
[365128760,1749483040162,-460.0,0.00021917,4]
[365128762,1749483040171,-1336.68,0.00021917,4]
[365128764,1749483040182,-487.93,0.00021917,4]
[365128766,1749483040191,-440.0,0.00021917,4]
[365128768,1749483040201,-440.0,0.00021917,4]
[365128770,1749483040211,-440.0,0.00021917,4]
[365128772,1749483040220,-460.0,0.00021917,4]
[365128774,1749483040231,-611.61,0.00021917,4]
[365128776,1749483040240,-4563.32,0.00021917,4]
[365128778,1749483040250,-430.0,0.00021917,4]
[365128780,1749483040261,-503.95,0.00021917,4]
[365128782,1749483040271,-440.0,0.00021917,4]
[365128784,1749483040281,-430.0,0.00021917,4]
[365128786,1749483040291,-897.37,0.00021917,4]
[365128788,1749483040301,-460.0,0.00021917,4]
[365128790,1749483040311,-356.20223324,0.00021917,4]
[365128792,1749483040321,-2378.83,0.00021917,4]
[365128794,1749483040330,-420.0,0.00021917,4]
[365128796,1749483040339,-440.0,0.00021917,4]
[365128798,1749483040349,-460.0,0.00021917,4]
[365128800,1749483040358,-460.0,0.00021917,4]
[365128802,1749483040367,-460.0,0.00021917,4]
[365128804,1749483040377,-440.0,0.00021917,4]
[365128806,1749483040386,-627.34,0.00021917,4]
[365128808,1749483040396,-440.0,0.00021917,4]
[365128810,1749483040406,-492.23,0.00021917,4]
[365128812,1749483040415,-460.0,0.00021917,4]
[365128814,1749483040425,-1126.69,0.00021917,4]
[365128816,1749483040434,-2331.37,0.00021917,4]
[365128818,1749483040444,-2397.1,0.00021917,4]
[365128820,1749483040453,-460.0,0.00021917,4]
[365128822,1749483040463,-340.03043852,0.00021917,4]
[365128824,1749483040473,-536.30302642,0.00021917,4]
[365128826,1749483040482,-1085.88,0.00021917,4]
[365128828,1749483040492,-440.0,0.00021917,4]
[365128830,1749483040502,-460.0,0.00021917,4]
[365128833,1749483040512,-259.3437004,0.00021967,2]
[365128834,1749483040521,-500.0,0.00021973,2]
[365128836,1749483040530,-500.0,0.00021973,2]
[365128838,1749483040540,-440.14452338,0.00021973,2]
[365128841,1749483040549,-1000.0,0.00022,22]
[365128843,1749483040559,-171.0,0.00022,2]
[365128845,1749483040569,-845.41145201,0.00022003,6]
[365128847,1749483040578,-2276.78,0.00022031,2]
[365128849,1749483040588,-845.41145201,0.00022141,6]
[365128851,1749483040597,-420.0,0.00022191,4]
[365128852,1749483040606,-540.04018772,0.00022191,4]
[365128854,1749483040615,-300.0,0.00022191,4]
[365128856,1749483040625,-277.87674849,0.00022191,4]
[365128858,1749483040635,-420.0,0.00022191,4]
[365128860,1749483040644,-333.04254253,0.00022191,4]
[365128862,1749483040653,-460.0,0.00022191,4]
[365128864,1749483040665,-420.0,0.00022191,4]
[365128867,1749483040677,-500.0,0.00022191,4]
[365128869,1749483040688,-460.0,0.00022191,4]
[365128870,1749483040697,-531.01,0.00022191,4]
[365128872,1749483040707,-460.0,0.00022191,4]
[365128874,1749483040717,-460.0,0.00022191,4]
[365128876,1749483040727,-460.0,0.00022191,4]
[365128878,1749483040736,-388.97794139,0.00022191,4]
[365128881,1749483040746,-420.0,0.00022191,4]
[365128883,1749483040764,-460.0,0.00022191,4]
[365128885,1749483040774,-477.12,0.00022191,4]
[365128887,1749483040783,-496.35,0.00022191,2]
[365128889,1749483040793,-460.0,0.00022191,4]
[365128891,1749483040802,-460.0,0.00022191,4]
[365128894,1749483040813,-420.0,0.00022191,4]
[365128895,1749483040822,-420.0,0.00022191,4]
[365128898,1749483040832,-931.27,0.00022191,4]
[365128900,1749483040841,-611.61,0.00022191,4]
[365128902,1749483040851,-355.60490511,0.00022191,4]
[365128904,1749483040861,-460.0,0.00022191,4]
[365128905,1749483040870,-460.0,0.00022191,4]
[365128908,1749483040880,-460.0,0.00022191,4]
[365128910,1749483040891,-463.64,0.00022191,4]
[365128911,1749483040900,-230.93154517,0.00022191,4]
[365128913,1749483040911,-192.97473504,0.00022191,4]
[365128915,1749483040920,-460.0,0.00022191,4]
[365128917,1749483040930,-2747.35,0.00022191,4]
[365128919,1749483040940,-460.0,0.00022191,4]
[365128922,1749483040949,-495.84,0.00022191,4]
[365128923,1749483040959,-1681.02,0.00022191,4]
[365128925,1749483040969,-420.0,0.00022191,4]
[365128928,1749483040979,-460.0,0.00022191,4]
[365128930,1749483040989,-700.17,0.00022191,4]
[365128932,1749483040998,-420.0,0.00022191,4]
[365128943,1749483041089,-460.0,0.00022191,4]
[365128945,1749483041110,-535.02,0.00022191,4]
[365128947,1749483041119,-460.0,0.00022191,4]
[365128949,1749483041129,-2776.12,0.00022191,4]
[365128951,1749483041138,-1602.31,0.00022191,4]
[365128953,1749483041147,-732.26,0.00022191,4]
[365128955,1749483041156,-460.0,0.00022191,4]
[365128957,1749483041166,-460.0,0.00022191,4]
[365128959,1749483041175,-942.88,0.00022191,4]
[365128961,1749483041185,-593.8,0.00022191,4]
[365128963,1749483041195,-460.0,0.00022191,4]
[365128965,1749483041204,-3801.97,0.00022191,4]
[365128967,1749483041214,-413.52,0.00022191,4]
[365128969,1749483041223,-460.0,0.00022191,4]
[365128971,1749483041233,-1189.4,0.00022191,4]
[365128973,1749483041242,-460.0,0.00022191,4]
[365128975,1749483041251,-460.0,0.00022191,4]
[365128977,1749483041261,-726.77,0.00022191,4]
[365128979,1749483041270,-460.0,0.00022191,4]
[365128981,1749483041279,-1277.5,0.00022191,4]
[365128983,1749483041289,-420.0,0.00022191,4]
[365128985,1749483041298,-460.0,0.00022191,4]
[365128987,1749483041307,-1336.68,0.00022191,4]
[365128989,1749483041317,-487.93,0.00022191,4]
[365128991,1749483041327,-460.0,0.00022191,4]
[365128993,1749483041336,-611.61,0.00022191,4]
[365128995,1749483041345,-4563.32,0.00022191,4]
[365128997,1749483041355,-503.95,0.00022191,4]
[365129000,1749483041364,-897.37,0.00022191,4]
[365129002,1749483041373,-460.0,0.00022191,4]
[365129004,1749483041383,-2378.83,0.00022191,4]
[365129006,1749483041393,-460.0,0.00022191,4]
[365129008,1749483041403,-420.0,0.00022191,4]
[365129010,1749483041413,-460.0,0.00022191,4]
[365129012,1749483041423,-627.34,0.00022191,4]
[365129014,1749483041434,-492.23,0.00022191,4]
[365129016,1749483041443,-460.0,0.00022191,4]
[365129018,1749483041453,-1126.69,0.00022191,4]
[365129020,1749483041463,-2331.37,0.00022191,4]
[365129022,1749483041473,-2397.1,0.00022191,4]
[365129024,1749483041484,-460.0,0.00022191,4]
[365129026,1749483041494,-1085.88,0.00022191,4]
[365129028,1749483041503,-502.20250663,0.00022191,4]
[365129030,1749483041513,-190.89077363,0.00022217,2]
[365129032,1749483041523,-845.41145201,0.00022279,6]
[365129034,1749483041533,-151.0,0.000223,2]
[365129036,1749483041542,-154.45857055,0.000223,2]
[365129038,1749483041552,-151.0,0.00022327,2]
[365129040,1749483041561,-281.31911977,0.00022331,69]
[365129042,1749483041571,-151.0,0.00022355,2]
[365129044,1749483041580,-229.64266968,0.00022359,2]
[365129046,1749483041590,-842.5625,0.00022359,2]
[365129048,1749483041600,-834.7738823,0.00022359,2]
[365129050,1749483041610,-213.08899333,0.00022359,2]
[365129052,1749483041619,-424.05420114,0.00022359,2]
[365129054,1749483041629,-160.0,0.00022359,2]
[365129056,1749483041638,-160.0,0.00022364,2]
[365129058,1749483041647,-160.0,0.00022364,2]
[365129060,1749483041658,-160.0,0.00022364,2]
[365129062,1749483041672,-160.0,0.00022364,2]
[365129064,1749483041682,-160.0,0.00022364,2]
[365129066,1749483041691,-160.0,0.00022364,2]
[365129068,1749483041701,-5877.77562994,0.00022365,2]
[365129070,1749483041712,-151.0,0.00022382,2]
[365129072,1749483041722,-189.27930641,0.00022403,2]
[365129074,1749483041732,-500.0,0.00022405,2]
[365129076,1749483041742,-151.0,0.0002241,2]
[365129078,1749483041753,-845.41145201,0.00022417,7]
[365129081,1749483041768,-245.0,0.00022437,2]
[365129084,1749483041791,-400.0,0.00022465,2]
[365129086,1749483041802,-400.0,0.00022465,2]
[365129088,1749483041813,-400.0,0.00022465,2]
[365129090,1749483041823,-460.0,0.00022465,4]
[365129092,1749483041833,-373.54989965,0.00022465,4]
[365129094,1749483041844,-531.01,0.00022465,4]
[365129096,1749483041854,-460.0,0.00022465,4]
[365129098,1749483041864,-460.0,0.00022465,4]
[365129100,1749483041874,-460.0,0.00022465,4]
[365129102,1749483041885,-460.0,0.00022465,4]
[365129104,1749483041895,-477.12,0.00022465,4]
[365129106,1749483041905,-496.35,0.00022465,2]
[365129109,1749483041916,-460.0,0.00022465,4]
[365129111,1749483041926,-400.0,0.00022465,4]
[365129113,1749483041938,-931.27,0.00022465,4]
[365129115,1749483041948,-611.61,0.00022465,4]
[365129117,1749483041958,-390.0,0.00022465,4]
[365129119,1749483041969,-607.59540472,0.00022465,4]
[365129121,1749483041979,-460.0,0.00022465,4]
[365129123,1749483041988,-463.64,0.00022465,4]
[365129125,1749483041998,-460.0,0.00022465,4]
[365129127,1749483042008,-2747.35,0.00022465,4]
[365129129,1749483042018,-460.0,0.00022465,4]
[365129131,1749483042027,-495.84,0.00022465,4]
[365129133,1749483042037,-1681.02,0.00022465,4]
[365129135,1749483042047,-460.0,0.00022465,4]
[365129137,1749483042056,-700.17,0.00022465,4]
[365129140,1749483042066,-460.0,0.00022465,4]
[365129142,1749483042076,-535.02,0.00022465,4]
[365129144,1749483042085,-390.0,0.00022465,4]
[365129146,1749483042096,-2776.12,0.00022465,4]
[365129148,1749483042105,-1602.31,0.00022465,4]
[365129150,1749483042116,-732.26,0.00022465,4]
[365129152,1749483042125,-368.44474859,0.00022465,4]
[365129154,1749483042135,-400.0,0.00022465,4]
[365129156,1749483042146,-942.88,0.00022465,4]
[365129158,1749483042156,-593.8,0.00022465,4]
[365129160,1749483042167,-400.0,0.00022465,4]
[365129162,1749483042177,-3801.97,0.00022465,4]
[365129164,1749483042187,-460.0,0.00022465,4]
[365129166,1749483042196,-1189.4,0.00022465,4]
[365129168,1749483042206,-460.0,0.00022465,4]
[365129170,1749483042215,-460.0,0.00022465,4]
[365129172,1749483042225,-726.77,0.00022465,4]
[365129174,1749483042234,-460.0,0.00022465,4]
[365129176,1749483042244,-1277.5,0.00022465,4]
[365129178,1749483042254,-460.0,0.00022465,4]
[365129180,1749483042264,-1336.68,0.00022465,4]
[365129182,1749483042274,-487.93,0.00022465,4]
[365129184,1749483042283,-167.90953021,0.00022465,4]
[365129186,1749483042293,-611.61,0.00022465,4]
[365129188,1749483042303,-4563.32,0.00022465,4]
[365129190,1749483042312,-503.95,0.00022465,4]
[365129192,1749483042322,-897.37,0.00022465,4]
[365129194,1749483042332,-460.0,0.00022465,4]
[365129196,1749483042341,-2378.83,0.00022465,4]
[365129198,1749483042351,-460.0,0.00022465,4]
[365129200,1749483042360,-460.0,0.00022465,4]
[365129202,1749483042370,-627.34,0.00022465,4]
[365129204,1749483042380,-492.23,0.00022465,4]
[365129206,1749483042390,-460.0,0.00022465,4]
[365129209,1749483042400,-1126.69,0.00022465,4]
[365129210,1749483042409,-2331.37,0.00022465,4]
[365129213,1749483042419,-2397.1,0.00022465,4]
[365129215,1749483042430,-400.0,0.00022465,4]
[365129218,1749483042439,-1085.88,0.00022465,4]
[365129221,1749483042449,-833.25,0.000225,7]
[365129223,1749483042459,-1000.0,0.00022521,2]
[365129225,1749483042469,-845.41145201,0.00022555,7]
[365129227,1749483042479,-190.89077363,0.00022687,2]
[365129230,1749483042491,-845.41145201,0.00022693,7]
[365129234,1749483042514,-642.6076695,0.00022703,30]
[365129236,1749483042524,-400.0,0.00022739,2]
[365129238,1749483042533,-567.41408605,0.00022739,4]
[365129239,1749483042543,-531.01,0.00022739,4]
[365129242,1749483042552,-460.0,0.00022739,4]
[365129243,1749483042562,-380.0,0.00022739,4]
[365129245,1749483042572,-460.0,0.00022739,4]
[365129248,1749483042582,-460.0,0.00022739,4]
[365129250,1749483042592,-477.12,0.00022739,4]
[365129252,1749483042602,-496.35,0.00022739,2]
[365129254,1749483042611,-460.0,0.00022739,4]
[365129256,1749483042621,-931.27,0.00022739,4]
[365129258,1749483042631,-611.61,0.00022739,4]
[365129260,1749483042641,-460.0,0.00022739,4]
[365129262,1749483042651,-463.64,0.00022739,4]
[365129264,1749483042661,-460.0,0.00022739,4]
[365129266,1749483042673,-2747.35,0.00022739,4]
[365129268,1749483042683,-460.0,0.00022739,4]
[365129270,1749483042692,-495.84,0.00022739,4]
[365129272,1749483042702,-1681.02,0.00022739,4]
[365129274,1749483042711,-460.0,0.00022739,4]
[365129276,1749483042720,-700.17,0.00022739,4]
[365129278,1749483042730,-460.0,0.00022739,4]
[365129280,1749483042738,-535.02,0.00022739,4]
[365129282,1749483042747,-2776.12,0.00022739,4]
[365129284,1749483042757,-1602.31,0.00022739,4]
[365129285,1749483042767,-732.26,0.00022739,4]
[365129286,1749483042776,-942.88,0.00022739,4]
[365129287,1749483042785,-593.8,0.00022739,4]
[365129288,1749483042795,-3801.97,0.00022739,4]
[365129289,1749483042803,-460.0,0.00022739,4]
[365129290,1749483042812,-1189.4,0.00022739,4]
[365129291,1749483042822,-460.0,0.00022739,4]
[365129292,1749483042831,-460.0,0.00022739,4]
[365129293,1749483042841,-726.77,0.00022739,4]
[365129294,1749483042850,-460.0,0.00022739,4]
[365129295,1749483042864,-1277.5,0.00022739,4]
[365129296,1749483042874,-460.0,0.00022739,4]
[365129297,1749483042884,-1336.68,0.00022739,4]
[365129298,1749483042894,-487.93,0.00022739,4]
[365129299,1749483042904,-611.61,0.00022739,4]
[365129300,1749483042915,-4563.32,0.00022739,4]
[365129301,1749483042926,-503.95,0.00022739,4]
[365129302,1749483042936,-897.37,0.00022739,4]
[365129303,1749483042947,-460.0,0.00022739,4]
[365129305,1749483042957,-2378.83,0.00022739,4]
[365129307,1749483042967,-380.0,0.00022739,4]
[365129309,1749483042978,-627.34,0.00022739,4]
[365129311,1749483042988,-492.23,0.00022739,4]
[365129312,1749483042998,-460.0,0.00022739,4]
[365129313,1749483043009,-2331.37,0.00022739,4]
[365129314,1749483043019,-1126.69,0.00022739,4]
[365129315,1749483043029,-2397.1,0.00022739,4]
[365129316,1749483043039,-1085.88,0.00022739,4]
[365129317,1749483043050,-207.4,0.00022762,2]
[365129318,1749483043060,-845.41145201,0.00022831,8]
[365129319,1749483043070,-189.27930641,0.00022938,2]
[365129320,1749483043080,-2845.98,0.00022949,2]
[365129321,1749483043090,-292.20643392,0.00022953,2]
[365129322,1749483043101,-845.41145201,0.00022969,8]
[365129323,1749483043110,-1000.0,0.00023,23]
[365129324,1749483043120,-151.0,0.00023013,7]
[365129325,1749483043131,-151.0,0.00023013,7]
[365129326,1749483043140,-151.0,0.00023013,7]
[365129327,1749483043151,-400.0,0.00023013,2]
[365129328,1749483043162,-531.01,0.00023013,4]
[365129329,1749483043172,-460.0,0.00023013,4]
[365129330,1749483043182,-460.0,0.00023013,4]
[365129331,1749483043192,-460.0,0.00023013,4]
[365129332,1749483043202,-477.12,0.00023013,4]
[365129333,1749483043212,-496.35,0.00023013,2]
[365129334,1749483043222,-460.0,0.00023013,4]
[365129335,1749483043233,-931.27,0.00023013,4]
[365129336,1749483043243,-611.61,0.00023013,4]
[365129337,1749483043254,-460.0,0.00023013,4]
[365129338,1749483043264,-463.64,0.00023013,4]
[365129339,1749483043274,-460.0,0.00023013,4]
[365129340,1749483043284,-2747.35,0.00023013,4]
[365129341,1749483043295,-460.0,0.00023013,4]
[365129342,1749483043305,-495.84,0.00023013,4]
[365129344,1749483043317,-1681.02,0.00023013,4]
[365129346,1749483043326,-460.0,0.00023013,4]
[365129348,1749483043336,-700.17,0.00023013,4]
[365129350,1749483043345,-460.0,0.00023013,4]
[365129352,1749483043355,-535.02,0.00023013,4]
[365129354,1749483043365,-2776.12,0.00023013,4]
[365129356,1749483043375,-1602.31,0.00023013,4]
[365129357,1749483043385,-732.26,0.00023013,4]
[365129358,1749483043395,-593.8,0.00023013,4]
[365129360,1749483043405,-942.88,0.00023013,4]
[365129374,1749483043530,-3801.97,0.00023013,4]
[365129376,1749483043540,-460.0,0.00023013,4]
[365129378,1749483043551,-1189.4,0.00023013,4]
[365129380,1749483043561,-460.0,0.00023013,4]
[365129382,1749483043571,-460.0,0.00023013,4]
[365129384,1749483043581,-726.77,0.00023013,4]
[365129386,1749483043591,-460.0,0.00023013,4]
[365129387,1749483043601,-1277.5,0.00023013,4]
[365129389,1749483043611,-460.0,0.00023013,4]
[365129391,1749483043621,-1336.68,0.00023013,4]
[365129393,1749483043630,-487.93,0.00023013,4]
[365129395,1749483043640,-611.61,0.00023013,4]
[365129398,1749483043650,-4563.32,0.00023013,4]
[365129399,1749483043660,-503.95,0.00023013,4]
[365129402,1749483043680,-897.37,0.00023013,4]
[365129404,1749483043694,-460.0,0.00023013,4]
[365129405,1749483043704,-2378.83,0.00023013,4]
[365129407,1749483043714,-627.34,0.00023013,4]
[365129409,1749483043724,-492.23,0.00023013,4]